lending/lending_fUSD_20260119
["ID","MTS","AMOUNT","RATE_DAILY","PERIOD"]
[402673416,1768785488479,-421.86843115,0.00016732,2]
[402673417,1768785489367,430.56,0.00025098,120]
[402673418,1768785492858,-8.69156885,0.00016732,2]
[402673419,1768785492881,-299.56692726,0.00016765,2]
[402673420,1768785494540,-228.41445249,0.00016765,2]
[402673421,1768785501973,-199.22287407,0.00016739,2]
[402673422,1768785504134,-283.29410064,0.00016739,2]
[402673423,1768785507426,-282.56168724,0.00016739,2]
[402673424,1768785509058,-201.32266976,0.00016739,2]
[402673425,1768785512706,-417.84520574,0.00016739,2]
[402673426,1768785515916,-65.32346255,0.00016739,2]
[402673427,1768785515939,-92.37339915,0.00016765,2]
[402673428,1768785518267,-173.32951599,0.00016765,2]
[402673429,1768785518295,-67.45494675,0.00016799,2]
[402673430,1768785520490,-164.49458661,0.00016799,2]
[402673431,1768785524757,-215.16890075,0.00016799,2]
[402673435,1768785541912,-52.88156589,0.00016799,2]
[402673436,1768785541938,-141.20840256,0.00016817,2]
[402673437,1768785544537,-167.12955933,0.00016817,2]
[402673438,1768785545697,-232.36882757,0.00016817,2]
[402673439,1768785550277,-314.66486057,0.00016817,2]
[402673440,1768785571614,-144.62834997,0.00016817,2]
[402673441,1768785571639,-205.59863402,0.00016817,2]
[402673442,1768785616351,-2.86158605,0.00016817,2]
[402673443,1768785616375,-265.09169618,0.00016817,2]
[402673444,1768785626763,-173.35951371,0.00016356,2]
[402673445,1768785646449,-165.77846592,0.00016356,2]
[402673446,1768785646471,-26.90830382,0.00016817,2]
[402673447,1768785646494,-41.54321661,0.00017008,2]
[402673448,1768785648780,-226.4302388,0.00017008,2]
[402673449,1768785651505,-212.84239565,0.00017008,2]
[402673450,1768785660822,-85.18414894,0.00017008,2]
[402673451,1768785660848,-222.93508219,0.0001704,2]
[402673452,1768785675868,-218.37814807,0.00016438,2]
[402673453,1768785677437,-155.44227205,0.00016438,2]
[402673454,1768785680185,-266.23496268,0.00016438,2]
[402673455,1768785683983,-159.9446172,0.00016438,2]
[402673456,1768785684008,-17.78036096,0.0001704,2]
[402673457,1768785687901,-175.74463723,0.0001704,2]
[402673458,1768785689938,-241.50505396,0.0001704,2]
[402673459,1768785720827,-177.03486566,0.0001704,2]
[402673460,1768785720851,-55.01185211,0.000171,2]
[402673461,1768785722362,-418.50928406,0.000171,2]
[402673462,1768785727042,-272.48385359,0.000171,2]
[402673463,1768785728617,-252.32852918,0.000171,2]
[402673464,1768785730050,-233.42779014,0.000171,2]
[402673465,1768785733076,-376.54571912,0.000171,2]
[402673466,1768785754583,-164.38782753,0.000171,2]
[402673467,1768785754611,-995.0,0.00017105,2]
[402673468,1768785754639,-549.0,0.00017187,2]
[402673469,1768785754666,-620.0,0.00017246,2]
[402673470,1768785754696,-721.12765535,0.00017246,2]
[402673471,1768785754726,-574.12855637,0.00017246,2]
[402673472,1768785754755,-753.7219215,0.00017246,2]
[402673473,1768785755087,-1245.2780785,0.00017246,2]
[402673474,1768785755115,-174.61919141,0.00017246,2]
[402673475,1768785755142,-500.0,0.00017246,2]
[402673476,1768785755170,-500.0,0.00017246,2]
[402673477,1768785755199,-322.6107,0.00017246,2]
[402673478,1768785755226,-250.0,0.00017246,2]
[402673479,1768785755255,-248.38210406,0.00017246,2]
[402673480,1768785755283,-250.0,0.00017246,2]
[402673481,1768785755311,-250.0,0.00017246,2]
[402673482,1768785755339,-1000.0,0.00017246,2]
[402673483,1768785755370,-250.0,0.00017246,2]
[402673484,1768785755470,-250.0,0.00017246,2]
[402673485,1768785755498,-1000.0,0.00017246,2]
[402673486,1768785755540,-214.19143741,0.00017246,2]
[402673487,1768785755570,-1000.0,0.00017246,2]
[402673488,1768785755599,-1000.0,0.00017246,2]
[402673489,1768785755627,-1000.0,0.00017246,2]
[402673490,1768785755654,-71.62712518,0.00017246,2]
[402673491,1768785755876,-928.37287482,0.00017246,2]
[402673492,1768785755911,-1000.0,0.00017246,2]
[402673493,1768785755941,-300.0,0.00017255,2]
[402673494,1768785755971,-1200.0,0.00017255,2]
[402673495,1768785756000,-300.0,0.00017255,2]
[402673496,1768785756184,-4788.01,0.00017256,2]
[402673497,1768785757482,-423.99,0.00017256,2]
[402673498,1768785757517,-995.0,0.00017271,2]
[402673499,1768785757553,-549.0,0.00017282,2]
[402673500,1768785757583,-549.0,0.00017298,2]
[402673501,1768785757612,-199.61,0.00017329,2]
[402673502,1768785757642,-566.0,0.00017346,2]
[402673503,1768785757673,-1167.2079,0.00017398,2]
[402673504,1768785757702,-397.34,0.00017442,2]
[402673505,1768785757731,-95.61174304,0.00017447,2]
[402673506,1768785757857,-114.49071392,0.00017447,2]
[402673507,1768785757886,-554.46370807,0.00017447,2]
[402673508,1768785757922,-978.13970371,0.00017447,2]
[402673509,1768785757953,-1463.23849806,0.00017447,2]
[402673510,1768785757983,-1799.53285248,0.00017447,2]
[402673511,1768785758162,-180.27904752,0.00017447,2]
[402673512,1768785758192,-1000.0,0.00017447,2]
[402673513,1768785758223,-549.0,0.00017488,2]
[402673514,1768785758253,-1939.76,0.00017498,2]
[402673515,1768785758287,-155.53654206,0.00017523,2]
[402673516,1768785758319,-242.88649814,0.00017534,2]
[402673517,1768785758454,-1500.0,0.0001677,2]
[402673518,1768785758485,-2084.21,0.00017539,2]
[402673519,1768785758516,-1152.59,0.00017571,2]
[402673520,1768785758664,-526.41,0.00017571,2]
[402673521,1768785758695,-1679.0,0.0001761,2]
[402673522,1768785759134,-377.19,0.00017649,2]
[402673523,1768785761078,-151.0,0.00017246,2]
[402673524,1768785761107,-4834.81,0.00017649,2]
[402673525,1768785761207,-1679.0,0.00017649,2]
[402673526,1768785761240,-541.0,0.0001768,2]
[402673527,1768785761271,-1679.0,0.00017688,2]
[402673528,1768785761300,-550.0,0.00017698,2]
[402673529,1768785761329,-500.0,0.00017699,2]
[402673530,1768785761663,-150.0,0.00017699,2]
[402673531,1768785761693,-150.0,0.00017699,2]
[402673532,1768785761720,-500.0,0.00017699,2]
[402673533,1768785761748,-500.0,0.00017699,2]
[402673534,1768785761775,-1679.0,0.00017727,2]
[402673535,1768785761803,-1722.791,0.00017753,2]
[402673536,1768785761861,-596.428,0.00017753,2]
[402673537,1768785761889,-189.328,0.00017753,2]
[402673538,1768785761916,-500.0,0.00017754,2]
[402673539,1768785761943,-150.0,0.00017754,2]
[402673540,1768785761969,-500.0,0.00017754,2]
[402673541,1768785761997,-500.0,0.00017754,2]
[402673542,1768785762028,-1679.0,0.00017766,2]
[402673543,1768785762176,-151.0,0.00017246,2]
[402673544,1768785762203,-4486.01,0.00017793,2]
[402673545,1768785762347,-725.99,0.00017793,2]
[402673546,1768785762380,-595.37131296,0.00017794,2]
[402673547,1768785762410,-181.08010149,0.00017794,2]
[402673548,1768785762439,-1679.0,0.00017805,2]
[402673549,1768785762467,-500.0,0.00017809,2]
[402673550,1768785762494,-260.24699511,0.00017809,2]
[402673551,1768785762520,-500.0,0.00017809,2]
[402673552,1768785762549,-500.0,0.00017809,2]
[402673553,1768785763641,-151.0,0.00017246,2]
[402673554,1768785763669,-151.0,0.00017246,2]
[402673555,1768785763696,-151.0,0.00017246,2]
[402673556,1768785763724,-151.0,0.00017246,2]
[402673557,1768785763752,-500.0,0.00017821,2]
[402673558,1768785763780,-560.42327,0.0001783,2]
[402673559,1768785763808,-207.59580068,0.00017835,2]
[402673560,1768785763837,-1679.0,0.00017844,2]
[402673561,1768785763866,-500.0,0.00017863,2]
[402673562,1768785763893,-500.0,0.00017863,2]
[402673563,1768785763922,-397.97185864,0.00017863,2]
[402673564,1768785764344,-102.02814136,0.00017863,2]
[402673565,1768785764383,-560.42328,0.0001788,2]
[402673566,1768785764420,-1679.0,0.00017883,2]
[402673567,1768785764587,-1947.07692452,0.00017899,2]
[402673568,1768785764709,-151.0,0.00017246,2]
[402673569,1768785764738,-1000.0,0.00017534,2]
[402673570,1768785764767,-1592.15384904,0.00017899,2]
[402673571,1768785764856,-1000.0,0.00017808,2]
[402673572,1768785764886,-3486.30769808,0.00017899,2]
[402673573,1768785765140,-1027.39460384,0.00017899,2]
[402673574,1768785765307,-1947.07692457,0.00017899,2]
[402673575,1768785765387,-85.57099679,0.00017246,2]
[402673576,1768785765406,-65.42900321,0.00017246,2]
[402673577,1768785765415,-934.57099679,0.00017899,2]
[402673578,1768785765435,-4513.70230192,0.00017899,2]
[402673579,1768785765500,-657.58285215,0.00017899,2]
[402673580,1768785765510,-369.81175169,0.00017899,2]
[402673581,1768785765523,-7683.12132374,0.00017899,2]
[402673582,1768785765532,-262.09946858,0.00017899,2]
[402673583,1768785765589,-7790.83360685,0.00017899,2]
[402673584,1768785765599,-262.09946858,0.00017899,2]
[402673585,1768785803021,-168.0,0.00017086,2]
[402673586,1768785803044,-70.91549128,0.00017112,2]
[402673590,1768785822030,-150.0,0.00016957,2]
[402673591,1768785822053,-97.08450872,0.00017112,2]
[402673592,1768785822076,-14.0,0.00017145,2]
[402673595,1768785871335,-195.28732902,0.00016961,2]
[402673596,1768785873680,-202.69968522,0.00016961,2]
[402673597,1768785875628,-276.73764997,0.00016961,2]
[402673598,1768785878288,-197.97095787,0.00016961,2]
[402673599,1768785881199,-389.12293948,0.00016961,2]
[402673600,1768785885137,-177.57814651,0.00016961,2]
[402673601,1768785888272,-182.05500625,0.00016961,2]
[402673602,1768785889282,-243.96505402,0.00016961,2]
[402673603,1768785892979,-360.27484085,0.00016961,2]
[402673604,1768785894511,-156.25071586,0.00016961,2]
[402673605,1768785896688,-200.0,0.00016961,2]
[402673606,1768785902762,-396.44153654,0.0001696,2]
[402673607,1768785910081,-803.55846346,0.0001696,2]
[402673608,1768785910104,-165.94860901,0.00016961,2]
[402673609,1768785912104,-215.70872266,0.00016961,2]
[402673610,1768785914688,-430.10190951,0.00016961,2]
[402673611,1768785919405,-345.70075882,0.00016961,2]
[402673612,1768785922029,-328.01806371,0.00016961,2]
[402673613,1768785925492,-300.0,0.00016961,2]
[402673614,1768785929168,-212.511,0.00016961,2]
[402673615,1768785931730,-168.76903802,0.00016961,2]
[402673616,1768785932778,-274.76701349,0.00016961,2]
[402673617,1768785936039,-248.24867309,0.00016961,2]
[402673618,1768785938606,-302.4460822,0.00016961,2]
[402673619,1768785941504,-277.42965865,0.000167,2]
[402673620,1768785944082,-264.70766812,0.000167,2]
[402673621,1768785945724,-302.96510007,0.000167,2]
[402673622,1768785947391,-195.98,0.000167,2]
[402673623,1768785950557,-215.70872266,0.000167,2]
[402673624,1768785953685,-391.9355504,0.000167,2]
[402673625,1768785953717,10000.01,0.000133,2]
[402673626,1768785953739,10000.01,0.000133,2]
[402673627,1768785953762,10000.01,0.000133,2]
[402673628,1768785953786,10000.01,0.000133,2]
[402673629,1768785953808,10000.01,0.000133,2]
[402673630,1768785953830,10000.01,0.000133,2]
[402673631,1768785953852,10000.01,0.000133,2]
[402673632,1768785953884,83108.96802554,0.000133,2]
[402673633,1768785955257,-165.46142959,0.000167,2]
[402673634,1768785957090,-166.66,0.000167,2]
[402673635,1768785963386,-300.0,0.00016699,2]
[402673636,1768785963412,-76.57118868,0.000167,2]
[402673638,1768785967729,-299.81336708,0.000167,2]
[402673639,1768785969162,-231.39722472,0.000167,2]
[402673642,1768785975312,-327.60277528,0.000167,2]
[402673644,1768785976867,-290.71747328,0.000167,2]
[402673645,1768785980730,-223.35608799,0.000167,2]
[402673647,1768785983316,-253.39799004,0.000167,2]
[402673648,1768785984870,-151.08296096,0.000167,2]
[402673649,1768785987272,-250.0,0.000167,2]
[402673652,1768785989960,-300.0,0.000167,2]
[402673653,1768785992093,-299.99999983,0.000167,2]
[402673654,1768785993625,-235.51839424,0.000167,2]
[402673655,1768785995141,-199.89891448,0.000167,2]
[402673656,1768785998248,-321.43128676,0.000167,2]
[402673657,1768786000455,-178.56871324,0.000167,2]
[402673658,1768786003382,-390.23775783,0.000167,2]
[402673659,1768786005666,-214.33938405,0.000167,2]
[402673660,1768786020939,-227.68463035,0.000162,5]
[402673661,1768786022540,-175.39869777,0.000162,5]
[402673662,1768786024167,-337.06724731,0.000162,5]
[402673663,1768786027304,-305.37336821,0.000162,5]
[402673664,1768786030490,-295.86608011,0.000162,5]
[402673665,1768786032186,-356.85502261,0.000162,5]
[402673666,1768786034238,-300.0,0.000162,5]
[402673667,1768786039201,-168.22269156,0.000162,5]
[402673668,1768786042324,-182.57215667,0.000162,5]
[402673669,1768786044083,-209.20770058,0.000162,5]
[402673670,1768786046257,-179.047633,0.000162,5]
[402673671,1768786048912,-394.24572605,0.000162,5]
[402673672,1768786051560,-553.61472247,0.000162,5]
[402673673,1768786053112,-293.69562351,0.000162,5]
[402673674,1768786055655,-500.0,0.000162,5]
[402673676,1768786062826,-190.354199,0.000162,5]
[402673677,1768786064490,-565.70718826,0.000162,5]
[402673678,1768786067006,-300.0,0.000162,5]
[402673679,1768786070958,-168.59194907,0.000162,5]
[402673680,1768786080083,-591.69802199,0.000162,5]
[402673681,1768786083311,-221.5918402,0.000162,5]
[402673682,1768786086253,787.25604664,0.000135,2]
[402673683,1768786086621,-345.46533407,0.000162,5]
[402673684,1768786088718,-175.19791443,0.000162,5]
[402673685,1768786090808,-277.86097792,0.000162,5]
[402673686,1768786092419,-200.0,0.000162,5]
[402673687,1768786094310,-259.33409053,0.000162,5]
[402673688,1768786097953,-173.72034882,0.000162,5]
[402673689,1768786101036,-304.80074815,0.000162,5]
[402673690,1768786102580,-290.92210688,0.000162,5]
[402673691,1768786104696,-390.66590947,0.000162,5]
[402673692,1768786106211,349.15058777,0.000154,2]
[402673693,1768786107295,-289.99250676,0.000162,5]
[402673694,1768786109990,-390.66590947,0.000162,5]
[402673697,1768786112612,-217.45216286,0.00016,4]
[402673700,1768786114724,-154.53466593,0.00016,4]
[402673704,1768786118514,-348.17,0.00016,4]
[402673707,1768786120011,-392.2803181,0.00016,4]
[402673708,1768786121472,-192.35570445,0.00016,4]
[402673709,1768786125268,-260.29062073,0.00016,4]
[402673710,1768786128863,-171.33430869,0.00016,4]
[402673711,1768786129247,-8863.60336559,0.00016,4]
[402673712,1768786129364,-10000.01,0.00016,4]
[402673713,1768786129492,-10000.01,0.00016,4]
[402673714,1768786131458,-198.74580285,0.00016,4]
[402673715,1768786131957,-10000.01,0.00016,4]
[402673716,1768786132110,-10000.01,0.00016,4]
[402673717,1768786134682,-244.40126019,0.00016,4]
[402673718,1768786135042,-10000.01,0.00016,4]
[402673719,1768786135208,-4326.43808923,0.00016,4]
[402673720,1768786135231,-1347.13382154,0.00016,4]
[402673721,1768786135372,-10000.01,0.000162,5]
[402673722,1768786137849,-200.22499774,0.000162,5]
[402673723,1768786140410,-294.29083844,0.000162,5]
[402673724,1768786142275,-188.41388948,0.000162,5]
[402673725,1768786143931,-202.58890261,0.000162,5]
[402673726,1768786146832,-395.92321083,0.000162,5]
[402673727,1768786150911,-320.69241555,0.000162,5]
[402673728,1768786153265,-288.12481299,0.000162,5]
[402673729,1768786153797,-10000.01,0.000162,5]
[402673730,1768786154134,-10000.01,0.000162,5]
[402673731,1768786154238,-10000.01,0.000162,5]
[402673732,1768786156745,-405.28052028,0.000162,5]
[402673733,1768786170262,-249.47500369,0.00016573,2]
[402673734,1768786170285,-279.9839892,0.00016573,2]
[402673735,1768786178352,3649.7111242,0.00016086,2]
[402673736,1768786195065,1745.1644738,0.00013984,2]
[402673737,1768786195089,7045.2455262,0.00013984,2]
[402673738,1768786215811,-279.09024509,0.00016573,2]
[402673739,1768786231360,-9.90975491,0.00016573,2]
[402673740,1768786231384,-57.5565108,0.00016573,2]
[402673741,1768786231409,-232.53373429,0.00016699,2]
[402673758,1768786232435,-967.46626571,0.00016699,2]
[402673759,1768786232445,-300.0,0.00016699,2]
[402673760,1768786232454,-419.32691405,0.000167,2]
[402673761,1768786232466,-23709.84205139,0.000167,2]
[402673762,1768786232475,-410.0,0.0001696,2]
[402673763,1768786232485,-791.53977993,0.00016961,2]
[402673764,1768786232499,-200.0,0.00016961,2]
[402673765,1768786232508,-9125.71652314,0.00016961,2]
[402673766,1768786232520,-8188.94331907,0.00016961,2]
[402673767,1768786232532,-2929.71303019,0.00016961,2]
[402673769,1768786232544,-1247.39962148,0.00016961,2]
[402673771,1768786232555,-84197.44834255,0.00016961,2]
[402673774,1768786232577,-931.037,0.00016961,2]
[402673776,1768786232588,-384.08817759,0.00016961,2]
[402673815,1768786238655,-2341.77954197,0.00016961,2]
[402673821,1768786240882,-3628.72224845,0.00016961,2]
[402673822,1768786240892,-168.0,0.00017008,2]
[402673823,1768786240902,-200.0,0.00017012,2]
[402673824,1768786240912,-168.0,0.00017043,2]
[402673825,1768786240921,-200.0,0.00017131,2]
[402673826,1768786240930,-154.0,0.00017145,2]
[402673827,1768786240940,-150.0,0.000172,2]
[402673828,1768786240949,-168.0,0.00017248,2]
[402673829,1768786240959,-168.0,0.00017275,2]
[402673830,1768786240969,-150.0,0.000173,2]
[402673831,1768786240978,-248.27,0.000173,2]
[402673832,1768786240988,-1227.81,0.000173,2]
[402673833,1768786240998,-151.35,0.000173,2]
[402673834,1768786241007,-150.0,0.000173,2]
[402673835,1768786241016,-179.47,0.000173,2]
[402673836,1768786241026,-150.0,0.000173,2]
[402673837,1768786241037,-171.73,0.000173,2]
[402673838,1768786241047,-200.0,0.00017302,2]
[402673839,1768786241056,-317.88,0.00017318,2]
[402673840,1768786241066,-168.0,0.00017372,2]
[402673841,1768786241075,-200.0,0.00017475,2]
[402673842,1768786241085,-500.0,0.00017479,2]
[402673843,1768786241094,-159.69,0.00017486,2]
[402673844,1768786241103,-156.03270317,0.00017501,2]
[402673845,1768786241113,-168.0,0.00017503,2]
[402673846,1768786241123,-419.7,0.00017571,2]
[402673848,1768786241143,-419.7,0.0001761,2]
[402673849,1768786241156,-419.7,0.00017649,2]
[402673850,1768786241167,-419.7,0.00017688,2]
[402673851,1768786241176,-1000.0,0.000177,2]
[402673852,1768786241186,-500.0,0.00017725,2]
[402673853,1768786241196,-500.0,0.00017725,2]
[402673854,1768786241206,-500.0,0.00017725,2]
[402673855,1768786241216,-419.7,0.00017727,2]
[402673856,1768786241227,-419.7,0.00017766,2]
[402673857,1768786241238,-500.0,0.0001778,2]
[402673858,1768786241249,-500.0,0.0001778,2]
[402673859,1768786241260,-500.0,0.0001778,2]
[402673860,1768786241270,-110834.8959,0.000178,2]
[402673861,1768786241280,-419.7,0.00017805,2]
[402673862,1768786241289,-1000.0,0.00017808,2]
[402673863,1768786241299,-215.0,0.0001781,2]
[402673864,1768786241309,-320.96604,0.0001782,2]
[402673865,1768786241320,-250.0,0.0001782,2]
[402673866,1768786241330,-300.0,0.0001782,2]
[402673867,1768786241340,-500.0,0.00017835,2]
[402673868,1768786241351,-500.0,0.00017835,2]
[402673869,1768786241361,-500.0,0.00017835,2]
[402673870,1768786241371,-2343.8656524,0.00017843,2]
[402673871,1768786241381,-419.7,0.00017844,2]
[402673873,1768786241391,-1414.045,0.00017857,2]
[402673874,1768786241401,-4808.28935878,0.00017867,2]
[402673875,1768786241411,-4808.28935878,0.00017878,2]
[402673877,1768786241421,-419.7,0.00017883,2]
[402673879,1768786241431,-4808.28935878,0.00017889,2]
[402673882,1768786241442,-174.61919141,0.00017889,2]
[402673884,1768786241451,-334.5472959,0.00017889,2]
[402673886,1768786241461,-1999.0,0.00017889,2]
[402673888,1768786241471,-500.0,0.00017889,2]
[402673890,1768786241480,-500.0,0.00017889,2]
[402673892,1768786241490,-500.0,0.00017889,2]
[402673893,1768786241503,-200.0,0.00017899,2]
[402673894,1768786241513,-2815.93464779,0.00017899,2]
[402673895,1768786241523,-2815.93464771,0.00017899,2]
[402673896,1768786241532,-2815.93464771,0.00017899,2]
[402673897,1768786241543,-2815.93464771,0.00017899,2]
[402673898,1768786241553,-2815.93464771,0.00017899,2]
[402673899,1768786241563,-2815.93464771,0.000179,2]
[402673900,1768786241577,-2815.93464771,0.000179,2]
[402673901,1768786241587,-2815.93464771,0.000179,2]
[402673902,1768786241598,-2815.93464771,0.000179,2]
[402673903,1768786241608,-1000.0,0.000179,2]
[402673904,1768786241620,-4808.28935878,0.000179,2]
[402673905,1768786241631,-2815.93464771,0.000179,2]
[402673906,1768786241642,-320.96605,0.0001792,2]
[402673907,1768786241653,-419.7,0.00017922,2]
[402673908,1768786241663,-177.41670972,0.00017937,2]
[402673909,1768786241673,-500.0,0.00017944,2]
[402673910,1768786241683,-500.0,0.00017944,2]
[402673911,1768786241693,-500.0,0.00017944,2]
[402673912,1768786241703,-168.0,0.00017951,2]
[402673913,1768786241713,-5212.0,0.00017961,2]
[402673914,1768786241722,-419.7,0.00017961,2]
[402673915,1768786241732,-150.0,0.00017973,2]
[402673916,1768786241743,-500.0,0.00017973,2]
[402673917,1768786241752,-151.0,0.00017986,2]
[402673918,1768786241762,-151.0,0.00017986,2]
[402673919,1768786241771,-1264.0,0.00017986,2]
[402673920,1768786241781,-151.0,0.00017986,2]
[402673921,1768786241791,-842.0,0.00017986,2]
[402673922,1768786241800,-1264.0,0.00017986,2]
[402673923,1768786241809,-151.0,0.00017986,2]
[402673924,1768786241819,-842.0,0.00017986,2]
[402673925,1768786241828,-198.21591817,0.00017986,2]
[402673926,1768786241838,-151.0,0.00017986,2]
[402673927,1768786241847,-151.0,0.00017986,2]
[402673928,1768786241857,-151.0,0.00017986,2]
[402673929,1768786241866,-202.69968522,0.00017988,2]
[402673930,1768786241876,-151.0,0.00017988,2]
[402673931,1768786241885,-151.0,0.00017988,2]
[402673932,1768786241895,-151.0,0.00017988,2]
[402673933,1768786241905,-151.0,0.00017988,2]
[402673934,1768786241915,-151.0,0.00017988,2]
[402673935,1768786241926,-151.0,0.00017988,2]
[402673936,1768786241936,-500.0,0.00017988,2]
[402673937,1768786241946,-151.0,0.00017988,2]
[402673938,1768786241956,-151.0,0.00017988,2]
[402673939,1768786241967,-151.0,0.00017988,2]
[402673940,1768786241978,-151.0,0.00017988,2]
[402673941,1768786241989,-151.0,0.00017988,2]
[402673942,1768786241999,-437.40969383,0.00017988,2]
[402673943,1768786242010,-741.61186054,0.00017988,2]
[402673944,1768786242021,-574.12855637,0.00017988,2]
[402673945,1768786242032,-154.2801588,0.00017998,2]
[402673946,1768786242042,-253.56629782,0.00017999,2]
[402673947,1768786242053,-500.0,0.00017999,2]
[402673948,1768786242065,-500.0,0.00017999,2]
[402673949,1768786242075,-500.0,0.00017999,2]
[402673950,1768786242085,-199.0,0.00017999,2]
[402673951,1768786242094,-500.0,0.00017999,2]
[402673952,1768786242104,-500.0,0.00017999,2]
[402673953,1768786242113,-500.0,0.00017999,2]
[402673954,1768786242123,-500.0,0.00017999,2]
[402673955,1768786242133,-500.0,0.00017999,2]
[402673956,1768786242143,-500.0,0.00017999,2]
[402673957,1768786242154,-500.0,0.00017999,2]
[402673958,1768786242164,-500.0,0.00017999,2]
[402673959,1768786242173,-500.0,0.00017999,2]
[402673960,1768786242182,-500.0,0.00017999,2]
[402673961,1768786242192,-500.0,0.00017999,2]
[402673962,1768786242201,-500.0,0.00017999,2]
[402673963,1768786242211,-500.0,0.00017999,2]
[402673964,1768786242221,-500.0,0.00017999,2]
[402673965,1768786242231,-500.0,0.00017999,2]
[402673966,1768786242240,-500.0,0.00017999,2]
[402673967,1768786242250,-500.0,0.00017999,2]
[402673968,1768786242259,-500.0,0.00017999,2]
[402673969,1768786242269,-500.0,0.00017999,2]
[402673970,1768786242278,-500.0,0.00017999,2]
[402673971,1768786242288,-500.0,0.00017999,2]
[402673972,1768786242298,-500.0,0.00017999,2]
[402673973,1768786242307,-500.0,0.00017999,2]
[402673974,1768786242317,-500.0,0.00017999,2]
[402673975,1768786242326,-500.0,0.00017999,2]
[402673976,1768786242336,-500.0,0.00017999,2]
[402673977,1768786242345,-500.0,0.00017999,2]
[402673978,1768786242355,-500.0,0.00017999,2]
[402673979,1768786242365,-500.0,0.00017999,2]
[402673980,1768786242374,-500.0,0.00017999,2]
[402673981,1768786242384,-500.0,0.00017999,2]
[402673982,1768786242394,-500.0,0.00017999,2]
[402673983,1768786242403,-500.0,0.00017999,2]
[402673984,1768786242413,-500.0,0.00017999,2]
[402673985,1768786242423,-500.0,0.00017999,2]
[402673986,1768786242432,-500.0,0.00017999,2]
[402673987,1768786242441,-500.0,0.00017999,2]
[402673988,1768786242451,-500.0,0.00017999,2]
[402673989,1768786242461,-500.0,0.00017999,2]
[402673990,1768786242470,-500.0,0.00017999,2]
[402673991,1768786242480,-500.0,0.00017999,2]
[402673992,1768786242490,-218.50196994,0.00017999,2]
[402673993,1768786242502,-500.0,0.00017999,2]
[402673994,1768786242511,-500.0,0.00017999,2]
[402673995,1768786242521,-500.0,0.00017999,2]
[402673996,1768786242531,-500.0,0.00017999,2]
[402673997,1768786242539,-500.0,0.00017999,2]
[402673998,1768786242549,-500.0,0.00017999,2]
[402673999,1768786242558,-500.0,0.00017999,2]
[402674000,1768786242568,-500.0,0.00017999,2]
[402674001,1768786242578,-785.81712122,0.00017999,2]
[402674002,1768786242588,-785.81712122,0.00017999,2]
[402674003,1768786242598,-785.81712122,0.00017999,2]
[402674004,1768786242607,-785.81712122,0.00017999,2]
[402674005,1768786242616,-785.81712122,0.00017999,2]
[402674006,1768786242626,-785.81712122,0.00017999,2]
[402674007,1768786242635,-785.81712122,0.00017999,2]
[402674008,1768786242644,-785.81712122,0.00017999,2]
[402674009,1768786242654,-785.81712122,0.00017999,2]
[402674010,1768786242663,-785.81712122,0.00017999,2]
[402674011,1768786242673,-785.81712122,0.00017999,2]
[402674012,1768786242682,-446.88213166,0.00017999,2]
[402674013,1768786242692,-500.0,0.00017999,2]
[402674014,1768786242701,-500.0,0.00017999,2]
[402674015,1768786242711,-364.31794139,0.00017999,2]